bitfinex/quotes_SOLUSD_20250416
["timestamp","ask_amount","ask_price","bid_price","bid_amount"]
[1744766766647,0.03,126.34,126.33,7.91577614]
[1744766767023,0.03,126.34,126.33,17.45030823]
[1744766767649,0.03,126.34,126.33,9.53453209]
[1744766767845,0.03,126.34,126.29,26.0]
[1744766768153,0.03,126.34,126.28,0.14216157]
[1744766768355,0.03,126.34,126.27,1.5951]
[1744766768546,0.03,126.34,126.3,9.53453209]
[1744766768728,9.53453209,126.33,126.28,7.91891035]
[1744766769045,9.56453209,126.34,126.29,9.53453209]
[1744766769243,28.21418095,126.34,126.29,9.53453209]
[1744766769445,11.64,126.33,126.29,9.53453209]
[1744766769652,21.17453209,126.33,126.29,9.53453209]
[1744766769858,9.53453209,126.32,126.27,9.53453209]
[1744766770034,9.53453209,126.31,126.26,17.45439325]
[1744766770855,7.91765637,126.3,126.26,7.91986116]
[1744766771042,26.56605164,126.32,126.27,9.53453209]
[1744766771245,7.91640278,126.32,126.28,9.53453209]
[1744766771430,19.55640278,126.32,126.28,9.53453209]
[1744766771754,7.91640278,126.32,126.28,9.53453209]
[1744766771956,19.5560566,126.33,126.29,9.53453209]
[1744766772254,29.09058869,126.33,126.28,9.53453209]
[1744766772751,11.64,126.33,126.29,9.53453209]
[1744766772959,11.64,126.33,126.3,9.53453209]
[1744766773137,11.64,126.33,126.3,17.45207956]
[1744766773336,0.03,126.34,126.31,9.53453209]
[1744766773944,0.03,126.34,126.33,9.53453209]
[1744766775163,0.03,126.34,126.33,17.45030823]
[1744766777251,0.03,126.34,126.33,14.87660281]
[1744766779381,0.03,126.34,126.33,22.79237895]
[1744766782467,0.03,126.34,126.33,22.93454052]
[1744766782676,0.03,126.34,126.33,22.79237895]
[1744766784082,0.03,126.34,126.31,7.91701216]
[1744766784296,0.03,126.34,126.3,14.87660281]
[1744766784463,0.03,126.34,126.29,53.7139916]
[1744766784653,0.03,126.34,126.33,14.87660281]
[1744766785769,0.03,126.34,126.3,14.87660281]
[1744766785770,0.03,126.34,126.32,14.87660281]
[1744766786281,0.03,126.34,126.31,7.91671461]
[1744766786282,0.03,126.34,126.31,22.79331742]
[1744766787089,0.03,126.34,126.29,45.79570829]
[1744766787090,0.03,126.34,126.28,66.85259614]
[1744766787259,14.87660281,126.32,126.26,7.92016473]
[1744766787576,11.82,126.33,126.28,14.87660281]
[1744766787783,26.69660281,126.33,126.29,14.87660281]
[1744766787956,26.69660281,126.33,126.29,22.79451047]
[1744766788471,34.61255137,126.33,126.29,7.91790766]
[1744766788678,14.87660281,126.32,126.25,0.20516157]
[1744766788885,14.87660281,126.31,126.26,7.92016473]
[1744766789184,14.87660281,126.31,126.26,22.79676754]
[1744766790590,22.79383942,126.31,126.26,22.79676754]
[1744766791088,22.79383942,126.31,126.27,14.87660281]
[1744766791483,22.79383942,126.31,126.27,22.79606407]
[1744766792290,34.63383942,126.31,126.27,22.79606407]
[1744766792590,22.79383942,126.31,126.27,22.79606407]
[1744766794295,30.48964886,126.33,126.29,14.87660281]
[1744766794589,45.36625167,126.33,126.28,14.87660281]
[1744766794887,14.87660281,126.32,126.28,14.87660281]
[1744766795090,14.87660281,126.32,126.27,7.91946126]
[1744766795294,14.87660281,126.31,126.26,7.92002522]
[1744766795469,14.87660281,126.31,126.26,22.79662803]
[1744766795669,38.40568175,126.33,126.28,14.87660281]
[1744766795877,53.28228456,126.33,126.28,14.87660281]
[1744766796798,7.91603289,126.33,126.29,14.87660281]
[1744766796968,0.03,126.34,126.32,14.87660281]
[1744766797888,0.03,126.34,126.33,14.87660281]
[1744766798986,0.03,126.34,126.33,22.79237895]
[1744766799167,0.03,126.34,126.33,17.439638]
[1744766802677,0.03,126.34,126.33,17.58179957]
[1744766807584,0.03,126.34,126.31,26.0]
[1744766807788,0.03,126.34,126.32,7.91640278]
[1744766807978,0.03,126.34,126.33,9.52386186]
[1744766808496,0.03,126.34,126.33,17.439638]
[1744766811791,0.03,126.34,126.33,9.52386186]
[1744766811976,0.03,126.34,126.33,17.439638]
[1744766812903,0.03,126.34,126.33,9.52386186]
[1744766813398,0.03,126.34,126.33,17.439638]
[1744766813981,0.03,126.34,126.33,9.52386186]
[1744766814380,0.03,126.34,126.33,17.439638]
[1744766815699,0.03,126.34,126.33,9.52386186]
[1744766816601,0.03,126.34,126.33,17.439638]
[1744766816793,0.03,126.34,126.33,9.52386186]
[1744766816979,0.03,126.34,126.32,9.52386186]
[1744766817603,0.03,126.34,126.33,9.52386186]
[1744766819299,0.03,126.34,126.32,9.52386186]
[1744766819684,0.03,126.34,126.31,17.44061161]
[1744766820001,0.03,126.34,126.32,9.52386186]
[1744766821400,0.03,126.34,126.33,9.52386186]
[1744766821999,0.03,126.34,126.32,9.52386186]
[1744766824606,0.03,126.34,126.33,9.66602343]
[1744766825481,0.03,126.34,126.33,17.58179957]
[1744766827403,0.03,126.34,126.33,17.439638]
[1744766827590,0.03,126.34,126.33,17.58179957]
[1744766828899,0.03,126.37,126.36,26.0]
[1744766829099,0.03,126.37,126.36,35.52386186]
[1744766829508,0.03,126.37,126.36,43.43775866]
[1744766829809,0.03,126.4,126.37,0.14216157]
[1744766830042,0.03,126.4,126.39,35.52386186]
[1744766830195,2.9587634,126.44,126.4,0.14216157]
[1744766830509,2.9587634,126.44,126.43,9.52386186]
[1744766831009,2.9587634,126.44,126.42,9.52386186]
[1744766831388,2.9587634,126.44,126.43,9.52386186]
[1744766831901,2.9587634,126.44,126.43,17.433377]
[1744766836613,2.9587634,126.44,126.43,17.57553857]
[1744766839720,2.9587634,126.44,126.43,9.52386186]
[1744766840605,2.9587634,126.44,126.43,17.57553857]
[1744766841825,2.9587634,126.44,126.43,9.52386186]
[1744766842617,2.9587634,126.44,126.42,43.43399136]
[1744766843217,2.9587634,126.44,126.43,9.52386186]
[1744766844613,2.9587634,126.44,126.43,17.57553857]
[1744766845006,0.03,126.5,126.46,26.0]
[1744766845211,0.03,126.5,126.47,9.52386186]
[1744766845428,0.03,126.5,126.46,35.52386186]
[1744766846241,0.03,126.5,126.47,9.52386186]
[1744766846608,7.9353422,126.5,126.46,9.52386186]
[1744766846929,17.45920406,126.5,126.45,9.52386186]
[1744766847125,17.45920406,126.5,126.45,17.43205939]
[1744766847316,9.52386186,126.49,126.44,43.43248229]
[1744766847921,7.9353422,126.5,126.45,9.52386186]
[1744766848123,17.45920406,126.5,126.45,9.52386186]
[1744766848524,9.52386186,126.48,126.44,26.0]
[1744766848738,9.52386186,126.48,126.43,7.90922159]
[1744766848913,9.52386186,126.48,126.43,9.52386186]
[1744766849239,9.52386186,126.48,126.42,33.90994591]
[1744766849240,9.52386186,126.46,126.42,35.52386186]
[1744766849539,9.52386186,126.47,126.42,35.52386186]
[1744766850236,17.43122893,126.47,126.42,43.4339451]
[1744766850440,29.07052647,126.48,126.44,9.52386186]
[1744766850738,29.07052647,126.48,126.42,33.91008324]
[1744766850939,29.07052647,126.48,126.44,9.52386186]
[1744766851433,29.07052647,126.48,126.44,17.43249383]
[1744766851623,17.43052647,126.48,126.44,17.43249383]
[1744766851808,7.90666461,126.48,126.44,17.43249383]
[1744766852015,7.90607139,126.49,126.45,9.52386186]
[1744766853939,7.90607139,126.49,126.45,17.43197721]
[1744766854133,19.57539487,126.5,126.46,9.52386186]
[1744766854835,7.93539487,126.5,126.46,9.52386186]
[1744766855040,0.03,126.5,126.47,9.52386186]
[1744766855738,0.03,126.5,126.47,17.43078955]
[1744766855945,0.03,126.5,126.46,9.52386186]
[1744766856325,0.03,126.5,126.47,9.52386186]
[1744766857228,9.52386186,126.48,126.42,9.52386186]
[1744766857416,9.52386186,126.46,126.41,17.43462841]
[1744766858037,9.52386186,126.44,126.4,73.1141195]
[1744766858241,9.52386186,126.43,126.4,65.20309614]
[1744766858432,9.52386186,126.42,126.38,17.43627695]
[1744766859239,14.87088302,126.42,126.38,22.78329811]
[1744766859431,14.87088302,126.43,126.38,22.78329811]
[1744766859636,22.78072256,126.43,126.38,22.78329811]
[1744766860020,14.87088302,126.46,126.41,14.87088302]
[1744766860519,14.87088302,126.45,126.4,14.87088302]
[1744766861037,7.90763877,126.46,126.4,22.78179054]
[1744766861236,7.90763877,126.46,126.41,14.87088302]
[1744766861442,22.77852179,126.46,126.41,14.87088302]
[1744766862145,22.77852179,126.46,126.41,22.78154081]
[1744766863041,7.90763877,126.46,126.41,22.78154081]
[1744766863248,22.77852179,126.46,126.41,22.78154081]
[1744766864346,14.87088302,126.45,126.4,22.78227542]
[1744766864646,7.90763877,126.46,126.41,14.87088302]
[1744766864833,22.77852179,126.46,126.41,14.87088302]
[1744766865034,7.90763877,126.46,126.41,14.87088302]
[1744766865239,22.77852179,126.46,126.41,14.87088302]
[1744766865549,22.77852179,126.46,126.41,22.78161614]
[1744766866444,14.87088302,126.45,126.41,7.91073312]
[1744766866855,22.77934806,126.45,126.41,7.91073312]
[1744766868034,22.77934806,126.45,126.4,14.87088302]
[1744766868243,14.87088302,126.43,126.38,33.91233366]
[1744766868545,14.87088302,126.43,126.38,14.87088302]
[1744766868748,22.78164957,126.41,126.37,22.78415357]
[1744766868951,14.87088302,126.41,126.37,22.78415357]
[1744766869139,22.78130619,126.42,126.37,22.78415357]
[1744766869549,7.91042317,126.42,126.37,22.78415357]
[1744766869746,22.78130619,126.42,126.37,22.78415357]
[1744766871256,7.9091325,126.44,126.39,14.87088302]
[1744766871467,7.9091325,126.44,126.4,14.87088302]
[1744766871751,14.87088302,126.45,126.4,14.87088302]
[1744766871959,26.51088302,126.46,126.41,14.87088302]
[1744766872342,26.51088302,126.46,126.37,7.91327055]
[1744766872343,14.87088302,126.42,126.37,7.91327055]
[1744766872535,14.87088302,126.4,126.37,7.91327055]
[1744766872845,14.87088302,126.4,126.36,68.94952863]
[1744766872846,14.87088302,126.4,126.36,35.99221864]
[1744766873049,14.87088302,126.4,126.35,22.84810605]
[1744766873251,14.87088302,126.38,126.35,0.063]
[1744766873455,14.87088302,126.37,126.35,0.063]
[1744766873640,22.78355189,126.38,126.35,0.063]
[1744766874648,18.64964886,126.4,126.35,14.93388302]
[1744766874843,53.07210955,126.4,126.35,14.93388302]
[1744766875055,45.16053188,126.4,126.35,14.93388302]
[1744766875561,26.51088302,126.4,126.35,14.93388302]
[1744766875866,11.64,126.4,126.36,14.87088302]
[1744766876567,19.55146982,126.4,126.36,14.87088302]
[1744766876750,34.42235284,126.4,126.35,14.93388302]
[1744766877767,34.42235284,126.4,126.36,7.9138968]
[1744766878443,11.64,126.4,126.36,22.78477982]
[1744766878760,34.42239391,126.4,126.36,7.9138968]
[1744766878963,14.87088302,126.39,126.35,0.063]
[1744766879170,14.87088302,126.37,126.35,0.063]
[1744766879537,14.87088302,126.36,126.35,0.063]
[1744766879744,41.43442868,126.36,126.35,0.063]
[1744766880156,14.87088302,126.36,126.35,0.063]
[1744766880355,41.43395051,126.37,126.35,0.063]
[1744766880865,14.87088302,126.36,126.35,0.063]
[1744766881252,22.78477982,126.36,126.35,0.063]
[1744766881453,14.87088302,126.36,126.35,0.063]
[1744766881843,22.78477982,126.36,126.35,0.063]
[1744766882469,14.87088302,126.36,126.35,0.063]
[1744766882642,7.91359159,126.37,126.35,0.063]
[1744766882964,22.78447461,126.37,126.35,0.063]
[1744766883163,14.87088302,126.37,126.35,0.063]
[1744766883366,22.78430886,126.37,126.35,0.063]
[1744766883747,14.87088302,126.36,126.35,0.063]
[1744766884972,22.78477982,126.36,126.35,0.063]
[1744766886368,57.9046117,126.36,126.35,0.063]
[1744766887371,64.26867327,126.36,126.35,0.063]
[1744766888174,49.25562868,126.36,126.35,0.063]
[1744766888364,60.89562868,126.36,126.35,0.063]
[1744766888986,7.91327055,126.37,126.35,0.063]
[1744766889272,7.91201835,126.39,126.35,14.93388302]
[1744766889479,22.78290137,126.39,126.35,0.063]
[1744766889660,14.87088302,126.38,126.35,0.063]
[1744766890068,22.78290137,126.39,126.35,0.063]
[1744766890851,14.87088302,126.38,126.35,0.063]
[1744766891272,7.91283776,126.38,126.35,0.063]
[1744766893979,22.78372078,126.38,126.35,0.063]
[1744766894150,7.91283776,126.38,126.35,0.063]
[1744766894355,22.78372078,126.38,126.35,0.063]
[1744766896160,14.87088302,126.37,126.35,0.063]
[1744766896356,7.91283776,126.38,126.35,0.063]
[1744766896567,22.78372078,126.38,126.35,0.063]
[1744766898482,48.3914149,126.36,126.35,0.063]
[1744766898687,18.79181043,126.35,126.31,0.063]
[1744766898857,14.87088302,126.32,126.31,0.063]
[1744766899864,22.7872858,126.32,126.31,0.063]
[1744766900070,7.91640278,126.32,126.31,0.063]
[1744766900264,22.7872858,126.32,126.31,0.063]
[1744766900571,41.43693466,126.32,126.31,0.063]
[1744766903384,41.57909623,126.32,126.31,0.063]
[1744766904187,41.57909623,126.32,126.31,1e-08]
[1744766907695,61.57909623,126.32,126.31,1e-08]
[1744766910900,41.57909623,126.32,126.31,1e-08]
[1744766914582,41.43693466,126.32,126.31,1e-08]
[1744766918300,53.07693466,126.32,126.31,1e-08]
[1744766918504,53.21909623,126.32,126.31,1e-08]
[1744766921283,47.88506873,126.32,126.31,1e-08]
[1744766924510,47.74290716,126.32,126.31,1e-08]
[1744766928410,7.91603496,126.33,126.31,1e-08]
[1744766929723,0.03,126.38,126.32,15.92875552]
[1744766930014,0.03,126.38,126.36,11.13695552]
[1744766930912,0.03,126.38,126.37,9.53685552]
[1744766931418,0.03,126.38,126.37,15.92875552]
[1744766931919,0.03,126.38,126.37,23.84202607]
[1744766932422,247.04,126.44,126.37,23.98418764]
[1744766932600,247.04,126.44,126.4,9.53685552]
[1744766932601,254.94914384,126.44,126.4,9.53685552]
[1744766933221,254.94914384,126.44,126.4,14.86635005]
[1744766934620,7.90914384,126.44,126.4,14.86635005]
[1744766936298,41.42514275,126.44,126.39,14.86635005]
[1744766936601,14.86635005,126.42,126.37,21.25825005]
[1744766937617,14.86635005,126.41,126.37,6.3919]
[1744766938824,7.9113924,126.4,126.37,6.3919]
[1744766939419,14.86635005,126.39,126.36,1.6001]
[1744766939611,22.77774245,126.4,126.36,16.46645005]
[1744766940514,14.86635005,126.39,126.36,1.6001]
[1744766941225,7.9126444,126.38,126.36,1.6001]
[1744766941820,7.9126444,126.38,126.34,21.50985005]
[1744766941821,22.77899445,126.38,126.34,21.50985005]
[1744766943010,7.9126444,126.38,126.34,29.42489788]
[1744766943210,7.91201835,126.39,126.35,14.86635005]
[1744766945429,22.7783684,126.39,126.34,29.42489788]
[1744766946226,14.86635005,126.38,126.34,6.6435]
[1744766946443,14.86635005,126.36,126.32,1.5496]
[1744766947624,22.78082778,126.36,126.32,1.5496]
[1744766949733,22.78082778,126.36,126.32,9.46595705]
[1744766950333,22.78082778,126.36,126.32,1.5496]
[1744766950637,7.91349024,126.37,126.34,14.86635005]
[1744766950821,7.91283762,126.38,126.35,14.86635005]
[1744766951030,22.77860927,126.39,126.35,14.86635005]
[1744766951220,7.91225922,126.39,126.35,14.86635005]
[1744766951420,7.91168897,126.4,126.36,14.86635005]
[1744766952135,19.53101357,126.41,126.37,14.86635005]
[1744766952338,7.91101357,126.41,126.38,14.86635005]
[1744766952837,7.91101357,126.41,126.37,21.45685005]
[1744766953213,14.86635005,126.4,126.35,14.86635005]
[1744766953410,14.86635005,126.39,126.34,29.42936081]
[1744766953626,14.86635005,126.38,126.34,6.648]
[1744766954224,22.77950338,126.38,126.34,6.648]
[1744766955925,33.51599891,126.37,126.32,16.41595005]
[1744766956119,33.51599891,126.37,126.32,24.3323324]
[1744766956437,41.42949086,126.37,126.33,14.86635005]
[1744766956620,34.39942375,126.38,126.33,14.86635005]
[1744766956823,19.5330737,126.38,126.34,14.86635005]
[1744766957827,7.9130737,126.38,126.34,22.78141625]
[1744766958645,14.86635005,126.39,126.35,14.86635005]
[1744766958822,71.13599891,126.4,126.36,14.86635005]
[1744766959143,59.51599891,126.4,126.35,14.86635005]
[1744766959523,67.42769984,126.4,126.35,14.86635005]
[1744766959927,7.91107141,126.41,126.37,14.86635005]
[1744766960435,22.77742146,126.41,126.36,14.86635005]
[1744766961118,7.91107141,126.41,126.36,14.86635005]
[1744766961322,22.77742146,126.41,126.36,22.77994648]
[1744766962129,7.91107141,126.41,126.36,22.77994648]
[1744766962429,22.77742146,126.41,126.36,22.77994648]
[1744766964352,22.77742146,126.41,126.36,14.86635005]
[1744766964850,22.77742146,126.41,126.36,22.7800599]
[1744766965049,22.77742146,126.41,126.33,31.4081477]
[1744766965050,14.86635005,126.39,126.34,14.86635005]
[1744766965226,14.86635005,126.38,126.33,14.86635005]
[1744766966052,14.86635005,126.36,126.32,1.5496]
[1744766966231,14.86635005,126.36,126.32,9.46599644]
[1744766966423,22.78052387,126.36,126.32,9.46599644]
[1744766966624,22.78052387,126.36,126.32,1.5496]
[1744766968331,14.86635005,126.35,126.32,1.5496]
[1744766968539,14.86635005,126.35,126.31,14.86635006]
[1744766968728,14.86635005,126.34,126.31,1e-08]
[1744766969348,14.86635005,126.33,126.31,1e-08]
[1744766970964,22.78259712,126.33,126.31,1e-08]
[1744766971852,7.91624707,126.33,126.31,1e-08]
[1744766972679,22.78259712,126.33,126.31,1e-08]
[1744766974755,7.91624707,126.33,126.31,1e-08]
[1744766975342,22.78259712,126.33,126.31,1e-08]
[1744766976565,7.91624707,126.33,126.31,1e-08]
[1744766976745,7.91541289,126.34,126.31,14.86635006]
[1744766977056,37.981,126.39,126.33,14.86635005]
[1744766977057,7.91201835,126.39,126.33,14.86635005]
[1744766977241,7.91201835,126.39,126.32,6.2486]
[1744766977437,14.86635005,126.36,126.31,14.86635006]
[1744766977655,14.86635005,126.35,126.31,1e-08]
[1744766978348,7.91514959,126.34,126.31,1e-08]
[1744766979657,22.78131382,126.35,126.31,1e-08]
[1744766979864,33.51599891,126.34,126.31,1e-08]
[1744766980049,14.86635005,126.33,126.31,1e-08]
[1744766980671,7.91640278,126.32,126.31,1e-08]
[1744766981248,36.09829634,126.32,126.31,1e-08]
[1744766983171,41.46399481,126.32,126.31,1e-08]
[1744766983542,53.22615638,126.32,126.31,1e-08]
[1744766988351,57.18094297,126.32,126.31,1e-08]
[1744766997680,80.94094297,126.32,126.31,1e-08]
[1744767000398,44.64964886,126.3,126.29,1e-08]
[1744767000699,18.64964886,126.29,126.27,0.063]
[1744767000993,33.6897536,126.28,126.27,0.063]
[1744767001162,18.64964886,126.27,126.25,0.063]
[1744767001369,14.89794317,126.26,126.25,0.063]
[1744767001692,33.6897536,126.26,126.25,0.063]
[1744767002068,41.60991833,126.26,126.25,0.063]
[1744767002893,41.60991833,126.26,126.25,1e-08]
[1744767003096,65.36991833,126.26,126.25,1e-08]
[1744767003893,85.36991833,126.26,126.25,1e-08]
[1744767004484,64.64964886,126.24,126.23,1e-08]
[1744767004791,106.0655352,126.24,126.23,1e-08]
[1744767005180,147.92417373,126.24,126.23,1e-08]
[1744767006469,155.84559324,126.24,126.23,1e-08]
[1744767006876,62.55181043,126.2,126.16,0.063]
[1744767007174,44.64964886,126.15,126.13,0.063]
[1744767007370,54.20012152,126.15,126.13,0.063]
[1744767007890,44.64964886,126.15,126.13,0.063]
[1744767008093,18.64964886,126.15,126.13,0.063]
[1744767008787,18.64964886,126.16,126.13,0.063]
[1744767009096,9.55047266,126.15,126.13,0.063]
[1744767009295,15.07949963,126.15,126.13,0.063]
[1744767010181,37.74802333,126.15,126.13,0.063]
[1744767010383,38.64964886,126.14,126.13,0.063]
[1744767010576,65.20698692,126.14,126.13,0.063]
[1744767010775,54.48503744,126.14,126.13,0.063]
[1744767011178,73.1346863,126.14,126.13,0.063]
[1744767011404,18.64964886,126.13,126.12,0.063]
[1744767011596,33.58698692,126.13,126.12,0.063]
[1744767012597,33.72914849,126.13,126.12,0.063]
[1744767012799,41.6574764,126.13,126.12,0.063]
[1744767015504,26.72013834,126.13,126.12,0.063]
[1744767015697,18.64964886,126.13,126.12,0.063]
[1744767015901,18.64964886,126.14,126.12,0.063]
[1744767016196,33.58698692,126.14,126.12,0.063]
[1744767016395,14.93733806,126.13,126.12,0.063]
[1744767016697,15.07949963,126.13,126.12,0.063]
[1744767016899,14.93733806,126.13,126.12,0.063]
[1744767017202,41.51531483,126.13,126.12,0.063]
[1744767017399,41.6574764,126.13,126.12,0.063]
[1744767019103,61.6574764,126.13,126.12,0.063]
[1744767019985,41.6574764,126.13,126.12,0.063]
[1744767021713,18.79181043,126.12,126.11,0.063]
[1744767021903,33.72914849,126.12,126.11,0.063]
[1744767022109,18.79181043,126.12,126.11,0.063]
[1744767022285,33.72914849,126.12,126.11,0.063]
[1744767022490,30.26964886,126.12,126.11,0.063]
[1744767023507,45.20698692,126.12,126.11,0.063]
[1744767024813,53.13594346,126.12,126.11,0.063]
[1744767029918,53.27810503,126.12,126.11,0.063]
[1744767030100,68.21544309,126.12,126.11,0.063]
[1744767031312,53.13594346,126.12,126.11,0.063]
[1744767033213,53.27810503,126.12,126.11,0.063]
[1744767033608,68.21544309,126.12,126.11,0.063]
[1744767035318,0.14216157,126.08,126.06,0.063]
[1744767035507,45.20698692,126.07,126.06,0.063]
[1744767035892,53.13908813,126.07,126.06,0.063]
[1744767036904,19.82415721,126.11,126.06,0.063]
[1744767037104,33.58698692,126.1,126.06,0.063]
[1744767037430,14.93733806,126.07,126.06,0.063]
[1744767037921,22.86943927,126.07,126.06,0.063]
[1744767038231,18.79181043,126.06,126.05,0.063]
[1744767038525,48.66648655,126.06,126.05,0.063]
[1744767039110,18.79181043,126.04,126.01,6.3978]
[1744767039324,14.93733806,126.03,126.01,6.3978]
[1744767039827,7.93524837,126.02,126.01,6.3978]
[1744767040908,22.87258643,126.02,126.01,6.3978]
[1744767041221,33.58698692,126.02,126.01,0.063]
[1744767043034,41.66439686,126.02,126.01,0.063]
[1744767043512,41.66439686,126.02,125.99,0.063]
[1744767043513,18.79181043,126.01,125.99,0.063]
[1744767043713,33.58698692,126.0,125.99,0.063]
[1744767044627,18.64964886,126.0,125.99,0.063]
[1744767044834,33.58698692,126.0,125.99,0.063]
[1744767045208,41.52349485,126.0,125.99,0.063]
[1744767046138,26.58615679,126.0,125.99,0.063]
[1744767046336,41.52349485,126.0,125.99,0.063]
[1744767049843,26.58615679,126.0,125.99,0.063]
[1744767050026,18.64964886,126.0,125.99,0.063]
[1744767051443,18.64964886,126.01,125.99,0.063]
[1744767051648,28.22780004,126.01,125.99,0.063]
[1744767051938,18.79181043,125.98,125.95,0.063]
[1744767052238,28.36996161,125.96,125.95,0.063]
[1744767052538,28.22780004,125.96,125.95,0.063]
[1744767052840,36.1668283,125.96,125.95,0.063]
[1744767055255,41.57134482,125.96,125.95,0.063]
[1744767057646,26.58867712,125.96,125.95,0.063]
[1744767057937,41.57134482,125.96,125.95,0.063]
[1744767059555,87.71350639,125.96,125.95,1e-08]
[1744767060636,64.20867712,125.96,125.95,1e-08]
[1744767060849,0.03,126.07,126.0,6.3411]
[1744767061029,14.9826677,126.05,126.0,6.3411]
[1744767061359,14.9826677,126.05,126.0,21.3237677]
[1744767061547,26.0,126.05,126.0,21.3237677]
[1744767061726,22.91539814,126.06,126.0,21.3237677]
[1744767061932,7.96231048,126.07,126.03,14.9826677]
[1744767062360,33.96231048,126.07,126.03,14.9826677]
[1744767062536,0.03,126.07,126.04,14.9826677]
[1744767062755,0.03,126.07,126.05,14.9826677]
[1744767063632,0.03,126.07,126.04,14.9826677]
[1744767064458,41.0126677,126.07,126.0,6.3411]
[1744767064634,33.63231656,126.04,126.0,6.3411]
[1744767065056,41.56676363,126.04,126.0,6.3411]
[1744767065943,14.9826677,126.03,126.0,6.3411]
[1744767066328,41.56676363,126.04,126.0,6.3411]
[1744767067364,18.64964886,126.04,126.0,21.3237677]
[1744767067540,26.5837804,126.04,126.0,21.3237677]
[1744767067749,41.5664481,126.04,126.0,6.3411]
[1744767068737,14.9826677,126.03,125.99,1.5619]
[1744767068940,26.5837804,126.04,126.0,14.9826677]
[1744767069439,41.5664481,126.04,125.99,1.5619]
[1744767069645,41.5664481,126.04,125.99,16.5445677]
[1744767070357,41.5664481,126.04,125.99,1.5619]
[1744767070552,41.5664481,126.04,125.99,16.5445677]
[1744767070854,14.9826677,126.03,125.99,1.5619]
[1744767071066,61.40142112,126.04,125.99,16.5445677]
[1744767071862,18.64964886,126.02,125.99,1.5619]
[1744767072438,7.93713786,125.99,125.96,1.5551]
[1744767073256,7.93680026,126.0,125.97,14.9826677]
[1744767073437,7.93524837,126.02,125.98,14.9826677]
[1744767073869,7.93524837,126.02,125.99,14.9826677]
[1744767074046,7.93524837,126.02,125.96,1.5551]
[1744767074047,22.91791607,126.02,125.96,1.5551]
[1744767074240,18.64964886,126.01,125.97,14.9826677]
[1744767074436,7.93650793,126.0,125.97,14.9826677]
[1744767074642,7.93650793,126.0,125.98,14.9826677]
[1744767074942,7.93650793,126.0,125.96,1.5551]
[1744767075248,7.93650793,126.0,125.97,14.9826677]
[1744767075652,14.9826677,125.99,125.95,1e-08]
[1744767075972,18.64964886,125.99,125.95,1e-08]
[1744767076140,18.64964886,125.99,125.96,14.9826677]
[1744767076464,19.55650793,126.0,125.96,14.9826677]
[1744767076639,19.55650793,126.0,125.95,1e-08]
[1744767076839,14.9826677,125.97,125.95,1e-08]
[1744767077045,33.63231656,125.96,125.95,1e-08]
[1744767077761,18.64964886,125.96,125.95,1e-08]
[1744767078969,26.58867712,125.96,125.95,1e-08]
[1744767079956,7.93902826,125.96,125.95,1e-08]
[1744767080163,26.58822239,125.97,125.95,1e-08]
[1744767082061,7.93857353,125.97,125.95,1e-08]
[1744767082247,11.62,126.0,125.96,14.9826677]
[1744767082851,18.64964886,125.99,125.95,14.98266771]
[1744767083052,33.63231656,125.99,125.95,1e-08]
[1744767083760,7.93776789,125.98,125.95,1e-08]
[1744767083968,33.63231656,125.97,125.95,1e-08]
[1744767085356,33.63231656,125.96,125.95,1e-08]
[1744767085876,26.58867712,125.96,125.95,1e-08]
[1744767087051,41.57134482,125.96,125.95,1e-08]
[1744767088261,26.58867712,125.96,125.95,1e-08]
[1744767088747,40.9826677,125.99,125.95,1e-08]
[1744767088948,18.64964886,126.0,125.97,14.9826677]
[1744767089148,18.64964886,126.0,125.95,1e-08]
[1744767089149,7.93713786,125.99,125.96,14.9826677]
[1744767089457,26.58631798,126.0,125.97,14.9826677]
[1744767090271,26.58631798,126.0,125.96,16.5574677]
[1744767090573,26.58631798,126.0,125.97,14.9826677]
[1744767091880,7.93666912,126.0,125.97,14.9826677]
[1744767092077,7.9358781,126.01,125.98,14.9826677]
[1744767092251,7.9358781,126.01,125.96,9.51355761]
[1744767092583,7.9358781,126.01,125.98,14.9826677]
[1744767093461,7.9358781,126.01,125.97,14.9826677]
[1744767093658,18.64964886,126.0,125.96,1.5748]
[1744767093883,14.9826677,125.98,125.95,1e-08]